[Event "Czech Championship 2022"]
[Site "Usti nad Labem"]
[Date "2022.05.19"]
[Round "6.19"]
[White "Jun, Rudolf"]
[Black "Paseka, Matyas"]
[Result "1/2-1/2"]
[ECO "B51"]
[WhiteElo "2183"]
[BlackElo "2076"]
[Annotator "TA"]
[PlyCount "61"]
[EventDate "2022.05.12"]
[EventType "swiss"]
[EventCountry "CZE"]
[SourceTitle "playchess.com"]
[Source "ChessBase"]
[SourceQuality "1"]
[TimeControl "40/5400+30:1800+30"]

{[%evp 9,61,13,18,10,17,12,29,25,17,0,0,-7,0,2,69,14,12,12,12,4,37,0,0,-9,158,135,135,141,270,268,278,277,272,197,199,0,0,0,0,0,0,0,0,0,0,0,0,0,0,0,0,0,0,0]} 1. e4 {[%emt 0:00:04]} c5 {[%emt 0:00:04]} 2. Nf3 {[%emt 0:00:15]} d6 {[%emt 0:00:05]} 3. Bb5+ {[%emt 0:00:42]} Nd7 {[%emt 0:00:10]} 4. O-O {[%emt 0:00:10]} a6 {[%emt 0:00:06]} 5. Bd3 {[%emt 0:00:09]} Ngf6 {[%emt 0:00:12]} 6. c3 {[%emt 0:00:07] B51: Sicilian: Moscow Variation (3 Bb5+) without 3...Bd7.} b5 {[%emt 0:00:14]} 7. Re1 {[%emt 0:00:20]} Bb7 {[%emt 0:00:12]} 8. Bc2 {[%emt 0:00:08] White has an edge.} c4 {[%emt 0:00:12]} 9. b4 {[%emt 0:01:18]} g6 {[%emt 0:01:30]} 10. a4 {[%emt 0:00:46]} Bg7 $1 {[%emt 0:00:45]} 11. d4 {[%emt 0:04:15] [#]} e5 $146 {[%emt 0:06:56]} (11... cxd3 $11 12. Qxd3 bxa4) ({Predecessor:} 11... cxd3 12. Qxd3 bxa4 13. Bxa4 O-O 14. Bb2 d5 15. e5 Nh5 16. Bc1 f6 17. exf6 Ndxf6 {½-½ (88) Isha,S (2099)-Lyell,M (2198) Budapest 2019}) 12. axb5 {[%emt 0:02:54]} (12. Na3 $14) 12... axb5 $11 {[%emt 0:00:16]} 13. Rxa8 {[%emt 0:00:22]} Qxa8 {[%emt 0:00:28]} 14. Na3 {[%emt 0:00:40][%cal Bb1a3,Ba3b5,Bb5d6][%mdl 32]} (14. dxe5 {feels hotter.} dxe5 15. Na3 Qa6 16. Nxb5 Qxb5 17. Ba4) 14... Nxe4 {[%emt 0:16:55]} (14... Qa6 {is interesting.} 15. dxe5 dxe5 16. Nxb5 Qxb5 17. Ba4 Qa6) 15. Bxe4 {[%emt 0:04:04]} (15. Nxb5 $14 O-O 16. dxe5) 15... Bxe4 {[%emt 0:00:09]} 16. Nxb5 {[%emt 0:07:53]} Bxf3 $2 {[%emt 0:14:10]} (16... O-O $1 $11) 17. Nxd6+ $16 {[%emt 0:20:04]} Ke7 {[%emt 0:00:11]} 18. gxf3 {[%emt 0:00:19] [#] And now dxe5 would win.} Kxd6 {[%emt 0:00:33]} (18... Qd5 $16) 19. dxe5+ $18 {[%emt 0:00:15]} Kc7 {[%emt 0:00:16]} 20. Qd6+ {[%emt 0:00:53]} Kc8 {[%emt 0:00:29]} 21. e6 {[%emt 0:01:08]} (21. Re4 Nxe5 22. Rxe5 Bxe5 23. Qxe5 Kd7 $16) 21... fxe6 {[%emt 0:00:41] [#] ...Qd5 is the strong threat.} 22. Qxe6 {[%emt 0:01:00]} ({Better is} 22. Rd1 $18 Qa4 23. Bf4) 22... Qxf3 $11 {[%emt 0:14:57] The position is equal.} 23. Qxc4+ {[%emt 0:14:24]} Kd8 {[%emt 0:00:30]} (23... Kb8 $2 24. Bf4+ (24. Re7 Qd1+ 25. Kg2 Be5 $11) 24... Be5 25. Bxe5+ Nxe5 26. Rxe5 $18) 24. Bg5+ {[%emt 0:22:03]} Bf6 {[%emt 0:00:14]} 25. Bf4 {[%emt 0:03:20][%csl Gf4][%cal Rc4c7] Dancing on a razor blade.} ({Reject} 25. Qd4 Rf8 26. Rd1 Rf7 $17) 25... Qg4+ $1 {[%emt 0:10:04]} (25... Qxc3 $2 26. Qe4 Be5 27. Bg5+ (27. Bxe5 Qxe5 28. Qxe5 Nxe5 $14) 27... Bf6 28. Qa8+ Qc8 29. Bxf6+ Nxf6 30. Qa5+ Qc7 31. Rd1+ Nd7 32. Qg5+ Kc8 33. Rc1 $18) 26. Kh1 {[%emt 0:00:30][%csl Gf4][%cal Rc4c7]} Qf3+ {[%emt 0:07:17]} 27. Kg1 {[%emt 0:00:05][%csl Gf4][%cal Rc4c7]} Qg4+ $1 {[%emt 0:00:14]} (27... Qxc3 $2 28. Qe4 Be5 29. Bg5+ (29. Bxe5 Qxe5 30. Qxe5 Nxe5 $14) 29... Bf6 30. Qa8+ Qc8 31. Bxf6+ Nxf6 32. Qa5+ Qc7 33. Rd1+ Nd7 34. Qg5+ Kc8 35. Rc1 $18) 28. Kh1 {[%emt 0:00:06][%csl Gf4][%cal Rc4c7]} Qf3+ {[%emt 0:00:19]} 29. Kg1 {[%emt 0:00:04][%csl Gf4][%cal Rc4c7]} Qg4+ $1 {[%emt 0:00:58]} (29... Qxc3 $2 30. Qe4 Be5 31. Bg5+ (31. Bxe5 Qxe5 32. Qxe5 Nxe5 $14) 31... Bf6 32. Qa8+ Qc8 33. Bxf6+ Nxf6 34. Qa5+ Qc7 35. Rd1+ Nd7 36. Qg5+ Kc8 37. Rc1 $18) 30. Kh1 {[%emt 0:00:11][%csl Gf4][%cal Rc4c7]} Qf3+ {[%emt 0:00:04]} 31. Kg1 {[%emt 0:00:04] Blacks defense is rewarded with a draw.  Weighted Error Value: White=0.17 (very precise) /Black=0.19 (very precise)} 1/2-1/2

[Event "Czech Championship 2022"]
[Site "Usti nad Labem"]
[Date "2022.05.19"]
[Round "6.20"]
[White "Freisler, Pavel"]
[Black "Horak, Martin"]
[Result "1-0"]
[ECO "E15"]
[WhiteElo "2239"]
[BlackElo "2343"]
[Annotator "TA"]
[PlyCount "77"]
[EventDate "2022.05.12"]
[EventType "swiss"]
[EventCountry "CZE"]
[SourceTitle "playchess.com"]
[Source "ChessBase"]
[SourceQuality "1"]
[TimeControl "40/5400+30:1800+30"]

{[%evp 9,77,0,13,25,14,0,19,18,28,20,79,78,83,73,77,78,74,84,79,41,57,30,47,30,33,35,45,28,28,28,28,31,27,30,23,20,20,16,43,29,56,15,19,19,28,10,10,18,52,12,12,0,0,0,0,0,56,50,52,8,8,19,18,4,6,3,543,549,482,415]} 1. d4 {[%emt 0:00:03]} Nf6 {[%emt 0:00:12]} 2. Nf3 {[%emt 0:00:54]} e6 {[%emt 0:00:53]} 3. c4 {[%emt 0:03:52]} b6 {[%emt 0:00:51]} 4. g3 {[%emt 0:01:51]} Ba6 {[%emt 0:00:26]} 5. Qb3 {[%emt 0:04:05]} Bb7 {[%emt 0:04:07]} 6. Bg2 {[%emt 0:00:08] E15: Queen's Indian: 4 g3 sidelines, 4 g3 Ba6 and 4 g3 Bb7 early deviations.} c5 {[%emt 0:01:28]} 7. O-O {[%emt 0:01:48][%cal Od4d5]} cxd4 {[%emt 0:01:03]} 8. Nxd4 {[%emt 0:00:45] The position is equal.} Bxg2 {[%emt 0:00:15]} 9. Kxg2 {[%emt 0:00:01]} Be7 {[%emt 0:05:02]} (9... Qc8 $11) 10. Qf3 $16 {[%emt 0:08:00] [#]} Na6 $146 {[%emt 0:04:44]} ({Predecessor:} 10... d5 11. Nc3 Bb4 12. Rd1 Bxc3 13. bxc3 O-O 14. Bg5 Nbd7 15. cxd5 exd5 16. Nc6 Qe8 {0-1 (58) Georgiev,K (2595)-Olafsson,H (2510) Saint John 1988}) 11. Nc3 {[%emt 0:00:08]} O-O {[%emt 0:00:42]} 12. Rd1 {[%emt 0:03:24][%cal Od4c6] White is more active.} Qc8 {[%emt 0:17:55] Against Nc6} 13. b3 {[%emt 0:12:18]} Nc5 {[%emt 0:08:07]} 14. e4 {[%emt 0:03:38]} d6 {[%emt 0:02:38]} 15. Bf4 {[%emt 0:06:24] And now Ndb5 would win.} Ncd7 {[%emt 0:05:54]} 16. Rac1 {[%emt 0:09:13]} a6 {[%emt 0:04:31]} 17. Qe2 {[%emt 0:02:26]} Qb7 {[%emt 0:03:15]} 18. Nf3 {[%emt 0:03:28]} Nc5 {[%emt 0:03:24][%cal Rc5e4]} 19. Bxd6 {[%emt 0:04:32]} ({Much worse is} 19. Rxd6 Bxd6 20. Bxd6 Rfc8 $11) 19... Bxd6 {[%emt 0:00:15]} 20. Rxd6 {[%emt 0:00:04]} Ncxe4 {[%emt 0:00:21]} 21. Nxe4 {[%emt 0:00:30]} Nxe4 {[%emt 0:00:07]} 22. Rd4 {[%emt 0:00:53]} Nf6 {[%emt 0:02:54][%cal Be4f6,Bf6d5,Bd5c3][%mdl 32]} 23. Rcd1 {[%emt 0:02:09]} b5 {[%emt 0:01:36]} 24. c5 {[%emt 0:10:38]} b4 {[%emt 0:01:36]} 25. Kg1 {[%emt 0:05:00]} Rac8 {[%emt 0:01:25]} 26. Rc1 {[%emt 0:04:24]} Nd5 {[%emt 0:02:19]} 27. Ng5 {[%emt 0:04:38]} h6 {[%emt 0:09:18]} 28. Ne4 {[%emt 0:00:51] Hoping for Nd6.} ({Much weaker is} 28. Nxe6 Rfe8 29. c6 Rxc6 30. Rxc6 Qxc6 $17) 28... Nc3 {[%emt 0:07:57]} 29. Qd3 {[%emt 0:03:39] [#] aiming for Nd6.} (29. Qc4 {looks sharper.} Nxe4 30. c6 Qb6 31. Rxe4 Rc7 32. Qc2) 29... Nxe4 {[%emt 0:01:20]} 30. Qxe4 {[%emt 0:00:13]} Qxe4 {[%emt 0:00:58]} 31. Rxe4 $11 {[%emt 0:00:01][%mdl 4096] Endgame KRR-KRR} a5 {[%emt 0:00:22]} 32. c6 {[%emt 0:02:00][%cal Bc5c6,Bc6c7][%mdl 32]} Rfd8 {[%emt 0:01:26]} ({Black should play} 32... Rc7 $1 $11) 33. Re5 $1 $14 {[%emt 0:02:04]} Rd6 {[%emt 0:01:15]} 34. c7 {[%emt 0:00:45] Rb5 is the strong threat.} ({Reject} 34. Rxa5 Rdxc6 35. Rxc6 Rxc6 $11) 34... Rd7 {[%emt 0:00:36]} 35. Rec5 {[%emt 0:00:13]} Kf8 {[%emt 0:00:11]} 36. Kf1 {[%emt 0:00:51]} Ke7 {[%emt 0:00:41]} 37. Ke2 {[%emt 0:00:04]} Rd5 $2 {[%emt 0:02:19][%mdl 8192] [#]} (37... Kd6 $11) 38. Rxd5 $1 $18 {[%emt 0:01:18]} exd5 {[%emt 0:00:05]} 39. Kd3 {[%emt 0:00:04] Weighted Error Value: White=0.10 (very precise) /Black=0.32} 1-0

[Event "Czech Championship 2022"]
[Site "Usti nad Labem"]
[Date "2022.05.19"]
[Round "6.21"]
[White "Bartos, Jan"]
[Black "Ret, Adam Josef"]
[Result "1/2-1/2"]
[ECO "E04"]
[WhiteElo "2125"]
[BlackElo "2093"]
[Annotator "TA"]
[PlyCount "74"]
[EventDate "2022.05.12"]
[EventType "swiss"]
[EventCountry "CZE"]
[SourceTitle "playchess.com"]
[Source "ChessBase"]
[SourceQuality "1"]
[TimeControl "40/5400+30:1800+30"]

{[%evp 13,74,18,18,2,53,53,57,61,61,53,101,89,112,120,116,110,118,123,131,109,131,122,156,141,153,158,142,150,158,154,186,176,176,118,118,81,79,28,28,28,28,29,29,29,29,0,164,169,472,20,12,12,16,14,43,22,43,43,44,48,46,0,0]} 1. d4 {[%emt 0:00:03]} d5 {[%emt 0:00:07][%cal Bd7d5,Bd5c4][%mdl 32]} 2. c4 {[%emt 0:00:07]} e6 {[%emt 0:00:09]} 3. Nf3 {[%emt 0:00:04]} Nf6 {[%emt 0:00:25][%cal Bg8f6,Bf6d5,Bd5e3][%mdl 32]} 4. g3 {[%emt 0:00:05]} dxc4 {[%emt 0:02:42]} 5. Bg2 {[%emt 0:00:07]} a6 {[%emt 0:00:03]} 6. Ne5 {[%emt 0:00:34]} c5 {[%emt 0:08:18]} 7. Be3 {[%emt 0:03:19]} Nd5 {[%emt 0:12:26]} 8. O-O {[%emt 0:02:48] [#] E04: Open Catalan: 5 Nf3.} Bd6 $146 {[%emt 0:05:53]} (8... f6 $11 9. Nxc4 b5) ({Predecessor:} 8... Nd7 9. Nxc4 Nxe3 10. Nxe3 Be7 11. d5 exd5 12. Nxd5 O-O 13. Nbc3 Ne5 14. Qa4 Bd7 15. Qf4 Ng6 {1-0 (27) Alonso Rosell,A (2570)-Galaviz Medina,S (2374) Mexico City 2022}) 9. Nxc4 $14 {[%emt 0:01:31]} Nxe3 {[%emt 0:02:19]} 10. Nxd6+ {[%emt 0:00:55] White is slightly better.} Qxd6 {[%emt 0:00:09]} 11. fxe3 {[%emt 0:00:04]} Nd7 {[%emt 0:03:01]} (11... cxd4 $14 {should be considered.} 12. Qxd4 Qxd4 13. exd4 Nc6) 12. Nc3 {[%emt 0:01:03]} O-O {[%emt 0:06:52]} 13. Ne4 {[%emt 0:01:21]} Qe7 {[%emt 0:00:08]} 14. Rc1 {[%emt 0:04:40][%cal Rd4c5,Ba1c1,Bc1c5,Bc5c7][%mdl 32]} cxd4 {[%emt 0:03:49]} 15. Qxd4 {[%emt 0:02:44]} f5 {[%emt 0:20:45]} 16. Qd6 {[%emt 0:14:07]} Qe8 {[%emt 0:06:41]} 17. Nc5 {[%emt 0:07:34] White is much more active. The black rooks are badly placed.} Nxc5 {[%emt 0:00:51]} 18. Rxc5 {[%emt 0:00:13]} ({Resist} 18. Qxc5 e5 $14) 18... Qd8 {[%emt 0:01:41]} 19. Rd1 {[%emt 0:01:20]} Qxd6 {[%emt 0:01:34]} 20. Rxd6 {[%emt 0:00:07]} Rb8 {[%emt 0:02:14]} 21. Kf2 {[%emt 0:04:47]} Kf7 {[%emt 0:01:59]} 22. Rc7+ {[%emt 0:07:16]} Kf6 {[%emt 0:00:04]} 23. Ke1 {[%emt 0:00:36]} (23. e4 $18) 23... Re8 $16 {[%emt 0:01:11]} 24. b4 {[%emt 0:06:08]} Re7 {[%emt 0:01:32] [#]} 25. Rxe7 {[%emt 0:02:02]} ({Better is} 25. Rc5 $1 $16 {Strongly threatening Rd8.} Bd7 26. e4) 25... Kxe7 {[%emt 0:00:01][%mdl 4096] Endgame KRB-KRB} 26. Rb6 {[%emt 0:00:07]} Kd7 {[%emt 0:01:13] aiming for ...Kc7.} 27. a4 $1 {[%emt 0:00:34]} Kc7 {[%emt 0:11:15]} 28. a5 {[%emt 0:00:05]} Bd7 {[%emt 0:01:22]} 29. Kd2 {[%emt 0:03:14]} Bc6 $2 {[%emt 0:02:17] [#]} (29... e5 $1 $11) 30. Bxc6 $18 {[%emt 0:00:18]} bxc6 {[%emt 0:00:57]} (30... Rd8+ {is more resistant.} 31. Kc3 bxc6 32. Rxa6 Kb7 33. Rb6+ Kc7) 31. Rxa6 $2 {[%emt 0:00:18]} (31. Rxb8 $18 Kxb8 32. e4) 31... Rxb4 {[%emt 0:00:35] KR-KR} 32. Ra7+ {[%emt 0:00:06]} Kd6 $1 {[%emt 0:00:19]} 33. Rxg7 {[%emt 0:00:07]} Ra4 {[%emt 0:00:15]} 34. Rxh7 {[%emt 0:01:46] Threatens to win with Ra7.} (34. e4 $5) 34... Rxa5 {[%emt 0:00:01]} 35. e4 {[%emt 0:02:55]} Ra2+ {[%emt 0:01:14]} 36. Ke3 {[%emt 0:00:06] And now exf5 would win.} Ra3+ {[%emt 0:00:04]} 37. Kf4 {[%emt 0:00:37]} (37. Kf2 $1 $14) 37... Ra4 {[%emt 0:00:14] Weighted Error Value: White=0.42/Black=0.30} 1/2-1/2

[Event "Czech Championship 2022"]
[Site "Usti nad Labem"]
[Date "2022.05.19"]
[Round "6.23"]
[White "Jirasko, Miroslav"]
[Black "Horak, Jiri"]
[Result "0-1"]
[ECO "A28"]
[WhiteElo "2091"]
[BlackElo "2161"]
[Annotator "TA"]
[PlyCount "74"]
[EventDate "2022.05.12"]
[EventType "swiss"]
[EventCountry "CZE"]
[SourceTitle "playchess.com"]
[Source "ChessBase"]
[SourceQuality "1"]
[TimeControl "40/5400+30:1800+30"]

{[%evp 9,73,27,62,62,41,42,64,55,55,32,35,38,38,23,31,17,18,15,7,19,12,17,8,10,8,20,26,12,65,0,67,25,77,16,73,56,51,47,108,106,103,97,100,21,127,126,270,267,475,491,468,440,384,-801,-802,-1258,-1234,-1259,-1247,-1233,-1194,-1297,-1203,-29993,-29994,-29999]} 1. c4 {[%emt 0:00:05]} e5 {[%emt 0:00:10]} 2. Nc3 {[%emt 0:00:13]} Nf6 {[%emt 0:00:27]} 3. Nf3 {[%emt 0:00:18]} Nc6 {[%emt 0:00:08]} 4. e3 {[%emt 0:00:06]} d6 {[%emt 0:00:45]} 5. d4 {[%emt 0:01:12]} Be7 {[%emt 0:00:18]} 6. d5 {[%emt 0:06:06] A28: English Opening: Four Knights Variation.} Nb8 {[%emt 0:00:05][%cal Bc6b8,Bb8d7,Bd7c5][%mdl 32]} 7. e4 {[%emt 0:04:07]} O-O {[%emt 0:01:14]} 8. Be2 {[%emt 0:01:59] White is slightly better.} Nbd7 {[%emt 0:00:47]} 9. Qc2 {[%emt 0:03:48]} a5 {[%emt 0:01:02]} 10. b3 {[%emt 0:01:45] [#]} Nc5 $146 {[%emt 0:01:18]} ({Predecessor:} 10... Ne8 11. Be3 b6 12. h3 Nc5 13. g4 Bb7 14. O-O-O Na6 15. a3 Nc5 16. Kb2 Nd7 {1-0 (26) Baumgartner,U-Schaar,M Switzerland 1998}) 11. Nd2 {[%emt 0:01:01]} h6 {[%emt 0:03:54]} 12. a3 {[%emt 0:00:38][%cal Ba2a3,Ba3b4][%mdl 32]} Nh7 {[%emt 0:01:24]} 13. Rb1 {[%emt 0:03:23]} f5 {[%emt 0:00:38]} 14. b4 {[%emt 0:00:08]} axb4 {[%emt 0:00:39]} (14... Nxe4 {is interesting.} 15. Ndxe4 fxe4 16. Nxe4 Bf5) 15. axb4 {[%emt 0:00:06]} Nxe4 {[%emt 0:00:21]} 16. Ndxe4 {[%emt 0:00:10]} fxe4 {[%emt 0:00:08]} 17. Nxe4 {[%emt 0:00:16]} Nf6 {[%emt 0:03:56] Strongly threatening ...Nxe4.} 18. Ng3 {[%emt 0:03:49]} (18. Nc3 {looks sharper.} Ng4 19. O-O Bg5 20. h3) 18... Qe8 {[%emt 0:01:19]} (18... b5 $11) 19. Bd3 {[%emt 0:01:59]} (19. b5 $1 $14) 19... Bd7 {[%emt 0:15:47]} ({Better is} 19... b5 $11) 20. O-O {[%emt 0:02:33]} Kh8 {[%emt 0:05:32]} (20... b5 $11) 21. Bd2 {[%emt 0:21:56]} ({White should play} 21. b5 $16) 21... c6 {[%emt 0:04:51]} (21... b5 $11 {remains equal.}) 22. dxc6 $16 {[%emt 0:01:07]} bxc6 {[%emt 0:00:06]} 23. f4 {[%emt 0:04:42]} exf4 {[%emt 0:02:48]} (23... Ng4 $14) 24. Bxf4 {[%emt 0:00:34]} d5 {[%emt 0:01:48]} 25. c5 {[%emt 0:01:55]} Ng8 {[%emt 0:05:03]} 26. Rbe1 {[%emt 0:05:19]} (26. Kh1 $16) 26... Qd8 {[%emt 0:03:50]} (26... Rxf4 $1 $11 27. Rxf4 Bxc5+ 28. Kf1 Be3) 27. Qe2 {[%emt 0:11:58]} Be8 {[%emt 0:18:00]} (27... Ra4 $16 {was worth a try.}) 28. Bc2 $18 {[%emt 0:02:51] Hoping for Qd3.} Bf6 $2 {[%emt 0:04:42]} (28... Ra2) 29. Qd3 {[%emt 0:00:54][%csl Gc2][%cal Rd3h7]} g6 {[%emt 0:00:36]} 30. Bd6 {[%emt 0:05:41]} Rf7 {[%emt 0:02:27]} 31. Qxg6 {[%emt 0:03:38][%mdl 8192]} ({Weaker is} 31. b5 cxb5 32. Qxd5 Rfa7 $18) (31. Ne2 $18) 31... Bd4+ $19 {[%emt 0:01:21]} 32. Kh1 {[%emt 0:01:08]} Rxf1+ {[%emt 0:00:11][%mdl 64] [#] Discovered Attack} 33. Rxf1 {[%emt 0:00:11]} Bxg6 {[%emt 0:00:12]} 34. Bxg6 {[%emt 0:00:04]} Ra1 {[%emt 0:02:19]} 35. Bb1 {[%emt 0:00:40]} Qg5 {[%emt 0:00:43] Threatens to win with ...Qd2.} 36. Nf5 {[%emt 0:00:10] [#]} Qxf5 $3 {[%emt 0:00:12][%mdl 512]} 37. Bxf5 {[%emt 0:00:08]} (37. Rd1 Rxb1) 37... Rxf1# {[%emt 0:00:05] Weighted Error Value: White=0.74/Black=0.38} 0-1

[Event "Czech Championship 2022"]
[Site "Usti nad Labem"]
[Date "2022.05.19"]
[Round "6.24"]
[White "Paulus, Vaclav"]
[Black "Sura, Jaroslav"]
[Result "1/2-1/2"]
[ECO "C88"]
[WhiteElo "2093"]
[BlackElo "2010"]
[Annotator "TA"]
[PlyCount "99"]
[EventDate "2022.05.12"]
[EventType "swiss"]
[EventCountry "CZE"]
[SourceTitle "playchess.com"]
[Source "ChessBase"]
[SourceQuality "1"]
[TimeControl "40/5400+30:1800+30"]

{[%evp 19,99,14,29,14,44,34,52,41,62,62,54,55,40,23,23,18,56,54,60,51,76,72,165,132,167,85,68,-30,77,72,71,0,56,58,75,0,0,-8,-13,-31,0,-60,-65,-118,-73,-193,-196,-265,-262,-240,-240,-464,-426,-435,-433,-486,-163,-161,-244,-146,-197,-197,-197,-29966,-29967,-29964,-29969,-29969,-29970,-29970,-29971,-29971,-29971,-29955,-456,-395,0,-29938,0,-383,0,-5233]} 1. e4 {[%emt 0:00:03]} e5 {[%emt 0:02:58]} 2. Nf3 {[%emt 0:00:05]} Nc6 {[%emt 0:00:03]} 3. Bb5 {[%emt 0:00:06]} a6 {[%emt 0:00:04]} 4. Ba4 {[%emt 0:00:03]} Nf6 {[%emt 0:00:04]} 5. O-O {[%emt 0:00:04]} Be7 {[%emt 0:00:05]} 6. Re1 {[%emt 0:00:03]} b5 {[%emt 0:00:05]} 7. Bb3 {[%emt 0:00:03]} O-O {[%emt 0:00:03]} 8. a4 {[%emt 0:00:14]} b4 {[%emt 0:00:12]} 9. d4 $1 {[%emt 0:00:07][%mdl 4] is recently more successful than 9.d3.} d6 {[%emt 0:00:08]} 10. dxe5 {[%emt 0:00:07]} Nxe5 {[%emt 0:01:29]} 11. Nbd2 {[%emt 0:02:25] C88: Closed Ruy Lopez: Anti-Marshall Systems.} Bg4 {[%emt 0:01:12]} 12. h3 {[%emt 0:00:34]} Bh5 {[%emt 0:00:12]} 13. g4 {[%emt 0:02:13] Strongly threatening Nxe5. White is slightly better.} Bg6 {[%emt 0:07:41]} 14. Nxe5 {[%emt 0:01:15]} dxe5 {[%emt 0:00:03]} 15. Qf3 {[%emt 0:00:05] [#]} Nd7 $146 {[%emt 0:29:21]} ({Predecessor:} 15... c6 16. Nc4 Qc7 17. g5 Bh5 18. Qg3 Nd7 19. Be3 Kh8 20. Kh2 f5 21. Qh4 Bg6 {0-1 (40) Srumin,G (2118)-Feldshtein,I Israel 1999}) 16. Nf1 {[%emt 0:02:51]} Nc5 {[%emt 0:01:57]} 17. Bd5 {[%emt 0:01:20]} Rb8 {[%emt 0:00:33]} 18. Be3 {[%emt 0:02:20]} Ne6 {[%emt 0:05:13]} 19. Rad1 {[%emt 0:01:00] Bxe6 is the strong threat.} Qc8 {[%emt 0:02:28]} 20. Ng3 {[%emt 0:00:52]} Bg5 {[%emt 0:11:48]} (20... c5 $16 {keeps fighting.}) 21. Ba7 {[%emt 0:05:47]} Nd4 {[%emt 0:04:24]} 22. Rxd4 {[%emt 0:04:45]} (22. Bxd4 exd4 23. Rxd4 Qd7 $16) (22. Qd3 $18) 22... exd4 $16 {[%emt 0:00:20]} 23. Bxd4 {[%emt 0:00:05]} (23. Nf5 $14) 23... c5 {[%emt 0:03:15]} (23... Qd7 $11 {keeps the balance.} 24. Be3 Bxe3 25. Qxe3 Qxa4) 24. Be5 {[%emt 0:00:16] White is much more active.} Rb6 {[%emt 0:00:30]} 25. Qg2 {[%emt 0:03:16]} (25. a5 $16 Re6 26. Bxe6 Qxe6 27. Bf4) 25... Bf6 {[%emt 0:04:29]} (25... Re8 $11 26. f4 Bh4) 26. Bxf6 {[%emt 0:04:13]} Rxf6 {[%emt 0:01:36]} 27. Ne2 {[%emt 0:03:40]} (27. e5 $1 $16 {[%cal Re5f6]} Re8 28. Kf1) 27... Rd6 $11 {[%emt 0:12:11][%cal Od6d5]} 28. c4 {[%emt 0:06:59]} bxc3 $1 {[%emt 0:00:24]} 29. bxc3 {[%emt 0:00:59]} Kh8 {[%emt 0:00:24]} 30. f4 {[%emt 0:01:08]} ({White should play} 30. Nf4 $11) 30... f6 $15 {[%emt 0:00:28][%cal Bf7f6,Bf6g5][%mdl 32]} 31. c4 {[%emt 0:01:18]} (31. f5 $15 Bf7 32. Nf4) 31... Rb6 $1 $17 {[%emt 0:04:33][%cal Bd6b6,Bb6b3,Bb3h3,Bh3h2][%mdl 32]} 32. Kh1 {[%emt 0:04:26]} (32. Qg3 $17) 32... Bf7 $19 {[%emt 0:00:22]} 33. Rg1 {[%emt 0:01:35]} (33. Qf2 {was worth a try.}) 33... Qb8 {[%emt 0:02:03]} 34. g5 {[%emt 0:01:52]} fxg5 {[%emt 0:00:19] White must now prevent ...Bh5.} 35. f5 $2 {[%emt 0:00:03]} (35. Bxf7 {is a better defense.} Rxf7 36. Qxg5) 35... Bxd5 {[%emt 0:00:24]} 36. cxd5 {[%emt 0:00:14]} Rb3 {[%emt 0:02:18]} 37. h4 {[%emt 0:02:37]} h6 {[%emt 0:01:52]} (37... g6 38. fxg6 hxg6) 38. hxg5 {[%emt 0:00:22]} hxg5 {[%emt 0:00:05]} 39. Qxg5 {[%emt 0:09:30][%csl Gg1][%cal Rg5g7]} (39. Nc1 $2 Rf6 $1 40. Qxg5 Rh6+ 41. Qxh6+ gxh6 $19) 39... Rh3+ {[%emt 0:01:33]} 40. Kg2 {[%emt 0:00:03]} Rh2+ $40 {[%emt 0:02:12][%mdl 128] Black is out for blood.} 41. Kf1 $2 {[%emt 0:32:36]} (41. Kf3 $19 Qb3+ 42. Qe3) 41... Qb1+ $1 {[%emt 0:04:25]} ({Stronger than} 41... Qb2 42. Rg2 Rxg2 43. Qxg2 $17) 42. Nc1 {[%emt 0:00:00]} Qb2 {[%emt 0:01:29][%csl Gh2][%cal Rb2f2]} 43. Qe3 {[%emt 0:00:00]} Qc2 {[%emt 0:12:25]} 44. Nd3 {[%emt 0:00:00]} Rb8 {[%emt 0:01:22]} 45. Rxg7 {[%emt 0:00:00]} Rb1+ {[%emt 0:02:56]} ({And not} 45... Kxg7 46. Qg3+ Kh7 47. Qg6+ Kh8 48. Qf6+ Kh7 49. Qg6+ Kh8 50. Qf6+ Kh7 51. Qg6+ $11) 46. Ne1 {[%emt 0:00:00]} Rh1+ {[%emt 0:03:53]} (46... Kxg7 47. Qg3+ Kf8 48. Qd6+ Ke8 49. Qc6+ Kd8 50. Qd6+ Kc8 51. Qxa6+ Kc7 52. Qc6+ Kb8 53. Qd6+ Ka7 54. Qd7+ Rb7 55. Qxb7+ Kxb7 56. Nxc2 Rxc2 57. f6 $11) (46... Rxe1+ $142 47. Qxe1 Rh1+ 48. Rg1 Qd3+ 49. Kf2 Rh2+ 50. Rg2 Qc2+ 51. Kg3 Qxg2+ 52. Kf4 Rh3 53. Ke5 Qb2+ 54. Kd6 Qf6+ 55. Kxc5 Rc3+ 56. Qxc3 Qxc3+ 57. Kb6 Qd3 58. f6 Kg8 59. Kc7 Qxe4 60. d6 Qc4+ 61. Kb6 Qxa4 62. Kc7 Qc4+ 63. Kb7 Qb5+ 64. Kc7 Qc5+ 65. Kb8 Qxd6+ 66. Ka8 Kf7 67. Ka7 a5 68. Ka8 a4 69. Kb7 a3 70. Ka8 a2 71. Kb7 a1=Q 72. Kc8 Qa8#) 47. Rg1 {[%emt 0:00:00]} Rh2 {[%emt 0:01:27]} (47... Qc4+ $19 48. Kf2 Rb2+ 49. Kg3 Rxg1+ 50. Qxg1 Qxe4) 48. Rg6 $2 {[%emt 0:00:00][%mdl 8192] [#]} (48. Rg7 $11) 48... Rh1+ $2 {[%emt 0:01:27]} (48... Rxe1+ $1 {[%mdl 512] mates} 49. Qxe1 Rh1+ 50. Rg1 Qd3+ 51. Kf2 Rh2+ 52. Rg2 Qc2+ 53. Kg3 Qxg2+ 54. Kf4 Rh3 55. Ke5 Qb2+ 56. Kd6 Qf6+ 57. Kxc5 Rc3+ 58. Qxc3 Qxc3+ 59. Kd6 Qf6+ 60. Kc5 Qc3+ 61. Kd6 Qf6+ 62. Kc5 Qc3+) 49. Rg1 {[%emt 0:00:00] Really sharp!} Rh2 {[%emt 0:04:35]} (49... Qc4+ 50. Kf2 Rb2+ 51. Kg3 Rxg1+ 52. Qxg1 Qxe4) 50. Rg6 {[%emt 0:43:56][%mdl 32768] Black used his chance.  Weighted Error Value: White=0.68/Black=0.75. An unexpected result.} 1/2-1/2